bitfinex/quotes_ETHUSD_20220106
["timestamp","ask_amount","ask_price","bid_price","bid_amount"]
[1641482868085,0.00170527,3379.2,3378.0,0.00511581]
[1641482868985,0.00170527,3379.2,3378.0,0.04435726]
[1641482869185,0.00170527,3379.2,3378.8,2.25698816]
[1641482869387,2.02969226,3379.1,3378.8,2.25698816]
[1641482870334,2.02969226,3379.1,3378.9,2.25698816]
[1641482873123,2.02969226,3379.1,3378.8,2.25698816]
[1641482874067,2.02969226,3379.1,3378.9,2.25698816]
[1641482874872,2.02969226,3379.1,3379.0,2.25698816]
[1641482875470,0.00170527,3379.2,3379.0,2.25698816]
[1641482875670,0.00170527,3379.2,3379.0,2.29319822]
[1641482876473,0.00170527,3379.2,3379.0,0.03621006]
[1641482876773,1.89014498,3380.5,3379.1,12.0280849]
[1641482876973,1.89014498,3380.5,3380.3,1.20647728]
[1641482877173,1.89014498,3380.5,3380.3,1.24312679]
[1641482877821,3.5635304,3380.5,3380.3,0.03664951]
[1641482878022,1.67338542,3380.5,3380.2,1.07134329]
[1641482878725,1.06542496,3381.2,3380.3,0.47621075]
[1641482878923,1.06542496,3381.2,3380.3,1.37794865]
[1641482879123,0.01080005,3381.1,3380.3,1.37794865]
[1641482879325,0.01080005,3381.1,3380.4,1.50260662]
[1641482879525,0.01023162,3381.0,3380.4,1.53337538]
[1641482879930,1.61729248,3380.8,3380.4,1.53337538]
[1641482880124,0.0096632,3380.9,3380.4,1.53337538]
[1641482880326,0.00852635,3380.7,3380.5,1.09467112]
[1641482880527,0.00909478,3380.8,3380.6,0.4436957]
[1641482880727,1.0,3381.6,3380.5,1.09467112]
[1641482880728,4.10795793,3380.6,3380.5,1.09467112]
[1641482880928,0.00852635,3380.7,3380.5,1.09467112]
[1641482881126,0.00795793,3380.6,3380.5,1.09467112]
[1641482881327,0.00795793,3380.6,3380.4,1.09467112]
[1641482881576,2.05620971,3380.6,3380.4,1.53844252]
[1641482881775,0.00738951,3380.5,3380.4,1.09467112]
[1641482882177,0.00738951,3380.5,3380.0,2.42930543]
[1641482882377,0.00738951,3380.5,3380.0,2.39011362]
[1641482882580,0.00682108,3380.4,3380.0,2.42855395]
[1641482882778,0.00682108,3380.4,3380.0,2.39011362]
[1641482882980,0.00625266,3380.3,3380.1,1.09467112]
[1641482883378,0.00568424,3380.2,3380.1,1.09467112]
[1641482887024,0.00568424,3380.2,3379.8,2.59727774]
[1641482887424,3.52787178,3380.6,3379.8,2.63611932]
[1641482887425,0.00511581,3380.1,3379.8,2.63611932]
[1641482887629,0.00511581,3380.1,3379.8,0.03884158]
[1641482887826,1.98895523,3380.0,3379.6,1.83809257]
[1641482888332,0.00397897,3379.9,3379.6,1.83809257]
[1641482888526,0.00397897,3379.9,3379.8,1.50260662]
[1641482888728,1.98440784,3380.0,3379.8,1.53934561]
[1641482888931,1.98440784,3380.0,3379.8,1.50260662]
[1641482889369,1.98440784,3380.0,3379.5,2.28595014]
[1641482889570,1.98440784,3380.0,3379.7,2.25390993]
[1641482889973,1.98440784,3380.0,3379.7,2.55390993]
[1641482890175,1.98440784,3380.0,3379.7,2.25390993]
[1641482890374,1.98440784,3380.0,3379.7,2.29142664]
[1641482890573,1.98440784,3380.0,3379.6,1.49913892]
[1641482891175,17.3,3379.9,3379.3,1.49913892]
[1641482891377,1.84506909,3379.4,3379.3,1.49913892]
[1641482891878,0.73993,3379.7,3379.3,1.49913892]
[1641482892275,0.0022737,3379.6,3379.3,1.49913892]
[1641482892479,0.0022737,3379.6,3379.2,1.49913892]
[1641482892681,0.00170527,3379.5,3379.2,1.49913892]
[1641482893125,0.00113685,3379.4,3379.2,1.49913892]
[1641482893324,0.00113685,3379.4,3379.1,1.49913892]
[1641482893527,0.73988,3379.8,3379.1,1.49913892]
[1641482893528,0.00284212,3379.7,3379.1,1.49913892]
[1641482893926,0.0022737,3379.6,3379.1,1.49913892]
[1641482894126,0.7421937,3379.6,3379.1,1.49913892]
[1641482894326,0.7421937,3379.6,3378.9,2.25390993]
[1641482894327,10.9,3379.3,3378.9,2.25390993]
[1641482894525,12.251,3379.2,3378.4,3.0051265]
[1641482894727,20.26106,3379.1,3379.0,0.00113685]
[1641482894928,1.4806163,3378.7,3378.4,3.0051265]
[1641482895129,17.3,3378.6,3378.5,0.00284211]
[1641482895728,19.15961147,3378.6,3378.5,0.00284211]
[1641482895927,1.85961147,3378.6,3378.5,0.00284211]
[1641482896328,1.85961147,3378.6,3378.4,0.00341054]
[1641482897678,0.74031,3378.8,3378.3,0.00397896]
[1641482898282,0.74031,3378.8,3378.3,1.12884908]
[1641482898780,0.74031,3378.8,3378.4,0.00341054]
[1641482899180,1.9974029,3378.7,3378.4,0.00341054]
[1641482899681,0.74014,3378.6,3378.2,0.00454738]
[1641482900081,1.74014,3378.6,3378.3,1.12487012]
[1641482900322,1.74014,3378.6,3377.6,3.0051265]
[1641482900323,10.9,3378.4,3377.6,3.0051265]
[1641482900528,0.740377,3378.2,3377.6,3.0051265]
[1641482900821,0.74039,3378.0,3377.7,0.00284212]
[1641482901021,2.95092251,3378.1,3377.7,0.00284212]
[1641482901624,2.95092251,3378.1,3377.1,0.00625266]
[1641482901625,2.21052251,3378.1,3377.1,0.00625266]
[1641482901824,2.51052251,3378.1,3377.2,0.00568424]
[1641482902022,0.7403,3377.7,3377.1,0.00625266]
[1641482903023,0.7403,3377.7,3377.2,0.78551571]
[1641482903423,1.88974953,3377.6,3377.3,0.00511581]
[1641482903624,1.88974953,3377.6,3377.2,0.78558993]
[1641482903625,7.64039,3377.5,3377.2,0.78558993]
[1641482903826,18.34152684,3377.5,3377.2,0.78558993]
[1641482904082,18.34152684,3377.5,3377.3,1.49842032]
[1641482904678,17.3,3377.4,3377.3,1.49842032]
[1641482904878,18.3,3377.4,3377.3,1.49842032]
[1641482905078,18.3,3377.4,3377.2,7.422e-05]
[1641482905478,10.9,3377.3,3376.9,1.49842032]
[1641482905680,10.7025335,3377.0,3376.9,1.21362032]
[1641482905883,28.3535335,3377.0,3376.9,1.21362032]
[1641482906079,20.8035335,3377.0,3376.9,1.21362032]
[1641482906278,8.25,3376.9,3376.6,2.24766831]
[1641482906480,2.56003556,3376.9,3376.6,2.24766831]
[1641482906680,0.74067,3376.6,3376.2,2.24766831]
[1641482906881,1.4813976,3376.6,3376.2,2.24766831]
[1641482907082,4.04250412,3376.6,3376.3,0.00568424]
[1641482907283,17.3,3376.5,3376.3,0.00568424]
[1641482907682,2.12887883,3376.4,3376.3,0.00568424]
[1641482908124,2.12887883,3376.4,3376.1,0.00682109]
[1641482908527,0.351,3376.6,3376.1,0.00682109]
[1641482909727,0.351,3376.6,3376.4,1.17569615]
[1641482910130,0.351,3376.6,3376.5,0.00454739]
[1641482910527,0.351,3376.6,3376.5,1.12409132]
[1641482910927,0.351,3376.6,3376.5,1.12863871]
[1641482911328,1.09163,3376.6,3376.5,1.12863871]
[1641482911569,1.09163,3376.6,3376.5,0.00454739]
[1641482911973,1.09163,3376.6,3376.4,0.00511582]
[1641482912174,1.83229,3376.6,3376.4,0.00511582]
[1641482913775,0.3,3376.5,3376.4,0.00511582]
[1641482914177,0.3,3376.5,3376.4,1.12920714]
[1641482914373,18.78129,3376.6,3376.4,1.12920714]
[1641482914574,21.17129189,3376.5,3376.4,1.12920714]
[1641482914777,21.17129189,3376.5,3376.3,1.12409132]
[1641482915078,13.49200625,3376.4,3376.3,1.12409132]
[1641482915341,30.79200625,3376.4,3376.3,1.12409132]
[1641482915534,31.79200625,3376.4,3376.3,1.12977556]
[1641482915732,31.79200625,3376.4,3376.1,0.00682109]
[1641482915938,0.7408783,3376.2,3376.1,0.00682109]
[1641482916134,14.89126185,3376.2,3376.1,0.00682109]
[1641482916339,10.9,3376.1,3376.0,0.31155479]
[1641482916537,1.48189,3375.5,3374.5,3.682]
[1641482916736,19.92799571,3375.4,3374.2,2.39947989]
[1641482916935,17.3,3375.4,3374.6,0.00852635]
[1641482917135,1.87477564,3375.3,3374.6,0.00852635]
[1641482917636,0.74095,3375.2,3374.6,0.00852635]
[1641482918433,1.4819,3375.2,3374.6,0.00852635]
[1641482918836,2.222835,3375.2,3374.6,0.00852635]
[1641482920386,1.4819947,3375.0,3374.6,0.00852635]
[1641482920588,3.29673953,3374.9,3374.6,0.00852635]
[1641482920786,17.3,3374.8,3374.3,0.01023162]
[1641482921084,17.6,3374.8,3374.0,0.01193689]
[1641482921484,4.37005349,3374.7,3374.0,0.01193689]
[1641482921789,1.04114,3374.4,3374.0,0.01193689]
[1641482921987,17.3,3374.3,3374.0,0.01193689]
[1641482922184,1.04114,3374.4,3374.0,0.01193689]
[1641482922484,18.34114,3374.4,3374.0,0.01193689]
[1641482922706,1.4823444,3374.3,3374.0,0.01193689]
[1641482922943,3.32051119,3374.7,3374.0,0.01193689]
[1641482922944,0.7411,3374.7,3374.0,0.01193689]
[1641482923236,0.351,3374.8,3374.0,0.01193689]
[1641482923438,0.351,3375.7,3374.3,1.26433079]
[1641482923638,4.14809997,3376.1,3374.4,2.51236408]
[1641482923837,4.14809997,3376.1,3374.4,0.00966319]
[1641482924038,0.74091,3375.5,3374.5,0.00909477]
[1641482924339,0.74091,3375.5,3374.0,0.0128685]
[1641482924340,0.74091,3375.5,3374.1,0.01136846]
[1641482924538,4.14809997,3376.1,3374.1,0.01136846]
[1641482924739,4.14809997,3376.1,3375.0,1.09818961]
[1641482924941,1.97078997,3376.1,3375.0,1.09818961]
[1641482925238,1.97078997,3376.1,3375.1,0.00568423]
[1641482925438,2.03828447,3375.2,3375.1,0.00568423]
[1641482925638,2.03828447,3375.2,3374.5,0.00909477]
[1641482926341,2.03828447,3375.2,3374.4,0.00966319]
[1641482926612,2.03828447,3375.2,3374.8,1.09043374]
[1641482926803,1.48919997,3376.1,3374.8,1.09043374]
[1641482927002,1.43819997,3376.1,3374.9,2.71186639]
[1641482927199,0.43819997,3376.1,3374.9,0.00682108]
[1641482927398,0.13819997,3376.1,3375.0,0.00625265]
[1641482927599,0.13819997,3376.1,3374.9,0.74747108]
[1641482927999,0.13819997,3376.1,3375.0,0.00625265]
[1641482928599,1.89277149,3375.4,3375.0,0.00625265]
[1641482929300,1.89277149,3375.4,3374.5,0.00909477]
[1641482930102,1.89277149,3375.4,3374.6,1.13011278]
[1641482930326,1.89277149,3375.4,3374.7,0.7407]
[1641482930527,0.13819997,3376.1,3374.7,3.28866237]
[1641482930731,0.13819997,3376.1,3374.8,0.0073895]
[1641482931428,1.87162619,3375.6,3374.8,0.0073895]
[1641482933834,0.13819997,3376.1,3374.8,2.80894927]
[1641482934080,2.962324,3376.9,3376.0,1.1012666]
[1641482934381,5.6111,3377.1,3376.0,1.1012666]
[1641482934584,0.00113685,3376.3,3376.0,1.1012666]
[1641482934778,0.00511582,3377.0,3376.0,1.1012666]
[1641482935180,0.00454739,3376.9,3376.1,2.56944526]
[1641482935380,0.00454739,3376.9,3376.1,2.59043757]
[1641482935580,0.00397897,3376.8,3376.2,1.0]
[1641482935779,0.00397897,3376.8,3376.3,2.58435853]
[1641482935978,3.71552429,3378.1,3376.3,2.58435853]
[1641482935979,0.00341055,3376.7,3376.3,2.5469164]
[1641482936181,0.00341055,3376.7,3376.1,4.49439521]
[1641482936380,0.00284212,3376.6,3376.5,10.59029]
[1641482936981,0.00284212,3376.6,3376.5,0.74029]
[1641482937185,0.00284212,3376.6,3376.5,1.74029]
[1641482937585,0.00284212,3376.6,3376.5,0.74029]
[1641482937835,0.00284212,3376.6,3376.5,4.94029]
[1641482938231,0.00284212,3376.6,3376.5,4.2]
[1641482938431,0.00284212,3376.6,3376.5,4.48391317]
[1641482938633,0.00284212,3376.6,3376.5,0.28391317]
[1641482940134,0.00284212,3376.6,3376.3,0.74036]
[1641482940135,0.00284212,3376.6,3376.4,0.28391317]
[1641482940533,0.0022737,3376.5,3376.4,0.28391317]
[1641482940734,0.0022737,3376.5,3376.4,8.79766831]
[1641482941242,0.0022737,3376.5,3376.4,11.33379636]
[1641482941432,7.37e-05,3376.5,3376.4,11.3683515]
[1641482941683,1.05638167,3377.8,3376.5,10.98819997]
[1641482941887,1.05638167,3377.8,3377.1,0.74012]
[1641482942083,2.97621275,3378.9,3377.5,10.85]
[1641482942389,0.975429,3379.8,3377.5,10.85]
[1641482942390,0.00113685,3377.9,3377.6,13.8830265]
[1641482942581,0.08372263,3378.3,3377.8,10.88284451]
[1641482942782,3.56717498,3379.1,3377.8,10.88284451]
[1641482942783,3.56717498,3379.1,3378.1,10.85]
[1641482942980,3.56717498,3379.1,3378.2,2.72844171]
[1641482943183,3.56717498,3379.1,3378.3,1.351]
[1641482943383,3.56717498,3379.1,3378.4,2.93943968]
[1641482943582,4.7562333,3379.6,3378.8,1.80401074]
[1641482943785,11.4449695,3380.6,3378.8,1.80401074]
[1641482943786,3.56613994,3380.2,3379.5,4.66250021]
[1641482943984,3.56613994,3380.2,3379.5,1.36250021]
[1641482944183,3.56613994,3380.2,3379.5,2.10212021]
[1641482944384,3.56613994,3380.2,3379.5,0.73962]
[1641482944583,3.56613994,3380.2,3378.9,2.7900506]
[1641482944786,0.01297581,3380.6,3378.9,2.57381051]
[1641482944991,0.01297581,3380.6,3378.9,2.654518]
[1641482945184,0.01477901,3380.5,3379.0,1.0]
[1641482945430,0.01477901,3380.5,3379.1,2.65257573]
[1641482945631,0.01297581,3380.6,3379.0,1.0]
[1641482945632,0.01421058,3380.4,3379.5,1.14391157]
[1641482946030,0.01364216,3380.3,3379.5,1.14391157]
[1641482946438,0.01307374,3380.2,3379.5,1.14391157]
[1641482946828,0.01250531,3380.1,3379.4,1.0]
[1641482947028,0.31250531,3380.1,3379.2,0.73967]
[1641482947230,0.01193689,3380.0,3379.2,0.73967]
[1641482947632,0.01136847,3379.9,3379.3,4.08242435]
[1641482947831,0.01136847,3379.9,3379.4,1.0]
[1641482948030,1.08365806,3380.0,3379.8,10.17343379]
[1641482948431,0.01136847,3379.9,3379.8,10.17343379]
[1641482948631,0.01136847,3379.9,3379.8,11.17343379]
[1641482948832,0.01477901,3380.5,3379.8,11.17343379]
[1641482949082,0.01477901,3380.5,3379.9,1.0]
[1641482949289,0.01421058,3380.4,3379.8,2.01289379]
[1641482949483,0.01421058,3380.4,3379.7,1.83391555]
[1641482949783,1.4152237,3381.0,3379.7,0.00395555]
[1641482949784,0.01364216,3380.3,3379.7,0.00395555]
[1641482950186,0.01307374,3380.2,3379.7,0.00395555]
[1641482950487,0.01250531,3380.1,3379.7,0.00395555]
[1641482950884,0.01193689,3380.0,3379.7,0.00395555]
[1641482951286,0.8452048,3380.1,3379.7,0.00395555]
[1641482951686,0.01193689,3380.0,3379.7,0.00395555]
[1641482952590,1.9530128,3379.9,3379.7,0.00395555]
[1641482952848,1.9530128,3379.9,3379.7,1.50898456]
[1641482953043,0.01080004,3379.8,3379.7,1.50898456]
[1641482953645,0.01080004,3379.8,3379.7,7.40898456]
[1641482953843,0.01080004,3379.8,3379.7,7.03732352]
[1641482954043,0.01080004,3379.8,3379.7,1.13732352]
[1641482954242,0.01080004,3379.8,3379.7,0.00395555]
[1641482955044,0.01080004,3379.8,3379.7,9.70908205]
[1641482955243,0.01080004,3379.8,3379.7,3.00908205]
[1641482955744,0.01080004,3379.8,3379.7,9.15607749]
[1641482955945,0.01080004,3379.8,3379.7,1.40607749]
[1641482956613,0.01080004,3379.8,3379.7,3.00886162]
[1641482958006,0.01080004,3379.8,3379.7,6.01398812]
[1641482958200,0.01080004,3379.8,3379.7,4.61186618]
[1641482959001,0.01080004,3379.8,3379.7,2.60673968]
[1641482959203,0.01080004,3379.8,3379.7,3.87792189]
[1641482960002,0.6757337,3381.0,3379.9,0.73952]
[1641482960447,0.00113685,3380.0,3379.9,0.73952]
[1641482960650,0.00113685,3380.0,3379.7,1.60673968]
[1641482961449,0.00113685,3380.0,3379.9,3.86003413]
[1641482961648,1.97890728,3380.0,3379.9,3.86003413]
[1641482962048,2.27890728,3380.0,3379.9,3.86003413]
[1641482962248,1.97890728,3380.0,3379.9,3.86003413]
[1641482962447,2.27890728,3380.0,3379.9,3.86003413]
[1641482962647,1.97890728,3380.0,3379.9,2.25725]
[1641482962850,1.97890728,3380.0,3379.7,1.50897019]
[1641482963351,2.27890728,3380.0,3379.7,1.50897019]
[1641482963750,2.27890728,3380.0,3379.8,3.10779877]
[1641482964179,1.97890728,3380.0,3379.8,3.10779877]
[1641482964580,1.97890728,3380.0,3379.8,1.60278413]
[1641482965380,1.97890728,3380.0,3379.8,3.10779877]
[1641482965983,2.27890728,3380.0,3379.8,3.10779877]
[1641482966381,2.27890728,3380.0,3379.8,1.60278413]
[1641482966584,2.27890728,3380.0,3379.8,3.86003413]
[1641482967380,2.27890728,3380.0,3379.9,1.50494704]
[1641482968233,2.27890728,3380.0,3379.8,1.60278413]
[1641482968234,8.0,3379.9,3379.8,1.59113117]
[1641482968537,4.6,3379.8,3379.7,0.00395555]
[1641482968730,0.3,3379.9,3379.7,0.00395555]
[1641482969131,2.29137825,3380.0,3379.8,1.12881378]
[1641482969530,3.29137825,3380.0,3379.8,1.12881378]
[1641482969730,2.29137825,3380.0,3379.8,1.12881378]
[1641482970134,2.27890728,3380.0,3379.7,0.00395555]
[1641482970337,0.00113685,3380.0,3379.7,0.00395555]
[1641482971336,0.00113685,3380.0,3379.9,6.65725]
[1641482972187,0.00113685,3380.0,3379.9,8.44092894]
[1641482972387,0.00113685,3380.0,3379.9,14.89532281]
[1641482972587,0.6757337,3381.0,3380.8,1.18045548]
[1641482972787,0.6757337,3381.0,3380.8,1.91984548]
[1641482972988,0.00511581,3380.9,3380.8,1.91984548]
[1641482973387,0.00511581,3380.9,3380.8,11.01984548]
[1641482973590,0.00511581,3380.9,3380.8,13.93159778]
[1641482973791,1.08416388,3381.8,3380.9,10.85]
[1641482973987,1.08416388,3381.8,3381.3,0.73918]
[1641482974187,0.00454739,3381.7,3381.3,0.73918]
[1641482974587,0.00397896,3381.6,3381.3,0.73918]
[1641482974989,0.00341054,3381.5,3381.3,1.87134784]
[1641482975186,0.00341054,3381.5,3381.3,1.73918]
[1641482975434,0.00284212,3381.4,3381.3,1.0]
[1641482975735,0.00284212,3381.4,3380.8,4.48723981]
[1641482975736,0.00284212,3381.4,3380.9,1.0]
[1641482975933,0.00284212,3381.4,3381.0,0.73935]
[1641482976233,2.12435344,3381.9,3381.0,0.73935]
[1641482976234,0.00227369,3381.3,3381.0,0.73935]
[1641482976536,2.12435344,3381.9,3381.0,0.73935]
[1641482976537,0.00170527,3381.2,3381.0,0.73935]
[1641482976735,0.00170527,3381.2,3380.8,2.25655518]
[1641482976936,0.00113685,3381.1,3380.8,2.25655518]
[1641482977334,0.00397896,3381.6,3380.8,2.25655518]
[1641482977735,2.00307556,3381.0,3380.8,2.25655518]
[1641482977936,0.00341054,3381.5,3380.7,1.50455927]
[1641482978135,1.09694033,3381.7,3380.7,1.50455927]
[1641482978136,0.74345896,3381.6,3380.7,1.50455927]
[1641482978334,0.00284212,3381.4,3380.7,1.50455927]
[1641482978536,0.30341054,3381.5,3380.7,1.50455927]
[1641482978736,0.00227369,3381.3,3380.7,1.50455927]
[1641482978936,1.73655194,3381.2,3380.7,1.50455927]
[1641482979187,1.73825721,3381.2,3380.7,1.50455927]
[1641482979383,0.00113685,3381.1,3380.7,1.50455927]
[1641482980185,2.56891087,3381.1,3380.7,1.50455927]
[1641482980384,2.78844903,3381.1,3380.7,1.50455927]
[1641482980583,2.5444496,3381.1,3380.7,1.50455927]
[1641482980789,1.4793667,3381.0,3380.7,1.50455927]
[1641482980987,0.3,3380.8,3380.7,1.50455927]
[1641482981386,0.3,3380.8,3380.7,1.50569612]
[1641482981789,0.3,3380.8,3380.7,0.00113685]
[1641482981987,1.4793453,3380.9,3380.7,0.00113685]
[1641482982186,1.64077413,3381.1,3380.2,0.00397896]
[1641482982388,1.90295695,3380.5,3380.2,0.00397896]
[1641482983333,1.90295695,3380.5,3380.1,0.00454739]
[1641482984947,1.90295695,3380.5,3380.1,1.50910666]
[1641482984948,2.57161557,3380.4,3380.1,1.50910666]
[1641482985338,18.651,3380.3,3380.2,0.00397896]
[1641482985536,18.951,3380.3,3380.2,0.00397896]
[1641482985735,10.85,3380.2,3379.8,2.25655518]
[1641482985937,0.73987,3380.1,3379.8,2.25655518]
[1641482986138,0.73987,3380.1,3379.9,0.00170527]
[1641482986606,2.12556997,3380.0,3379.6,0.00341054]
[1641482986809,2.42556997,3380.0,3379.6,0.00341054]
[1641482987008,2.12556997,3380.0,3379.6,0.00341054]
[1641482987405,1.08416388,3380.6,3379.9,1.1908024]
[1641482987807,0.00170527,3380.5,3380.0,0.00113685]
[1641482988206,0.00113684,3380.4,3380.0,0.00113685]
[1641482988406,0.00113684,3380.4,3380.0,0.74071685]
[1641482988606,0.00170527,3380.5,3380.0,1.74071685]
[1641482988806,2.75590195,3380.9,3380.0,1.74071685]
[1641482988807,2.75590195,3380.9,3380.0,2.04071685]
[1641482989009,2.03040722,3380.9,3380.1,10.85]
[1641482989211,1.16111249,3380.9,3380.4,0.73929]
[1641482989408,1.16111249,3380.9,3380.5,0.34382905]
[1641482989612,1.16111249,3380.9,3380.5,1.08482432]
[1641482989808,2.16177309,3381.4,3381.3,1.24722753]
[1641482990009,1.81871726,3381.6,3380.6,0.00113685]
[1641482990212,0.00284211,3381.3,3380.6,0.00113685]
[1641482990640,0.00227369,3381.2,3380.9,1.4785]
[1641482990838,0.00227369,3381.2,3380.5,0.00170527]
[1641482991038,1.81871726,3381.6,3380.5,0.00170527]
[1641482991039,0.00170527,3381.1,3380.5,0.00170527]
[1641482991239,1.78724731,3380.6,3380.4,0.0022737]
[1641482991837,1.78724731,3380.6,3380.4,1.0022737]
[1641482992241,1.78724731,3380.6,3380.5,0.00170527]
[1641482992642,1.78724731,3380.6,3379.9,2.22637834]
[1641482992643,1.78724731,3380.6,3380.3,1.48169212]
[1641482992840,1.78724731,3380.6,3379.9,3.61338955]
[1641482992841,1.78724731,3380.6,3380.0,0.00454739]
[1641482993039,1.78724731,3380.6,3380.4,0.0022737]
[1641482993241,1.78724731,3380.6,3380.3,0.7395]
[1641482993641,1.78724731,3380.6,3380.4,0.0022737]
[1641482994086,0.78724731,3380.6,3380.4,0.0022737]
[1641482994491,6.3,3380.5,3380.4,0.0022737]
[1641482994689,8.91762209,3380.5,3380.2,0.00341054]
[1641482994893,1.0,3380.4,3379.3,0.00852635]
[1641482995190,2.53775143,3380.3,3379.3,0.00852635]
[1641482995588,2.53775143,3380.3,3379.4,1.48455591]
[1641482995789,1.4797042,3379.9,3379.4,1.48455591]
[1641482995989,0.7399,3379.8,3379.5,0.00738951]
[1641482996190,1.0399,3379.8,3379.5,0.00738951]
[1641482996588,1.62317447,3379.7,3379.5,0.00738951]
[1641482996788,1.62317447,3379.7,3379.2,0.00909478]
[1641482996991,0.7398785,3379.5,3379.2,0.00909478]
[1641482997493,1.62317447,3379.7,3378.9,0.01080005]
[1641482998733,1.62317447,3379.7,3379.1,0.73977]
[1641482999133,1.92317447,3379.7,3379.2,0.00909478]
[1641482999736,0.73993,3379.5,3379.0,0.01023163]
[1641482999938,1.88853549,3379.1,3379.0,0.01023163]
[1641483000535,1.7798357,3379.7,3379.0,0.01023163]
[1641483000736,0.3,3379.7,3379.0,0.01023163]
[1641483000934,0.7398055,3379.8,3379.0,0.01023163]
[1641483001136,1.47944,3380.8,3379.1,0.7398]
[1641483001589,0.351,3380.9,3379.1,0.7398]
[1641483001790,0.351,3380.9,3379.7,1.00646754]
[1641483002190,0.351,3380.9,3380.1,0.73959]
[1641483002392,0.00113684,3381.0,3380.1,0.73959]
[1641483003091,0.00113684,3381.0,3380.8,1.42172202]
[1641483003292,0.00113684,3381.0,3380.9,11.58929]
[1641483003892,0.00113684,3381.0,3380.9,12.58929]
[1641483004593,5.4998,3383.1,3382.5,1.34303258]
[1641483004793,1.44086894,3383.2,3382.5,1.34303258]
[1641483004794,1.42871788,3383.2,3382.5,1.34303258]
[1641483004990,1.42871788,3383.2,3382.5,7.14303258]
[1641483004991,6.17,3382.6,3382.5,7.14303258]
[1641483005192,6.17,3382.6,3382.5,8.91349147]
[1641483005456,1.42871788,3383.2,3382.5,10.35681217]
[1641483005655,1.42871788,3383.2,3382.7,1.47765]
[1641483005847,2.40629204,3384.1,3382.7,1.47765]
[1641483005848,6.12,3382.8,3382.7,12.36283464]
[1641483006049,1.0697689,3383.6,3382.8,10.85]
[1641483006248,1.0697689,3383.6,3383.4,2.18422183]
[1641483006449,0.00885198,3384.2,3383.4,2.18422183]
[1641483006450,0.00885198,3384.2,3383.5,10.86230517]
[1641483006651,0.00885198,3384.2,3383.8,0.73857]
[1641483008749,0.00885198,3384.2,3382.6,2.04214142]
[1641483008952,0.73892,3384.1,3382.6,2.02949989]
[1641483009186,1.75151591,3383.9,3382.7,2.62756307]
[1641483009387,0.32679812,3383.4,3382.7,0.73895]
[1641483009586,0.32679812,3383.4,3382.8,1.31116558]
[1641483009786,0.01307374,3383.3,3382.8,1.31116558]
[1641483009985,0.01307374,3383.3,3383.0,0.73888]
[1641483010187,0.32679812,3383.4,3383.0,0.73888]
[1641483010188,0.01250532,3383.2,3383.0,0.73888]
[1641483010589,0.0119369,3383.1,3383.0,0.73888]
[1641483011388,0.0119369,3383.1,3382.9,2.50594538]
[1641483011587,0.0119369,3383.1,3383.0,12.21454519]
[1641483011790,0.32679812,3383.4,3383.0,6.51454519]
[1641483011988,0.32679812,3383.4,3383.1,1.0]
[1641483012190,0.01307374,3383.3,3383.1,0.73885]
[1641483012489,0.32679812,3383.4,3383.1,1.73885]
[1641483012490,0.01250532,3383.2,3383.1,1.73885]
[1641483012939,0.01250532,3383.2,3383.1,0.73885]
[1641483013637,0.01250532,3383.2,3383.1,1.73885]
[1641483014238,0.01250532,3383.2,3383.1,0.73885]
[1641483014441,0.01250532,3383.2,3383.1,3.69499386]
[1641483014638,0.01250532,3383.2,3383.1,4.69499386]
[1641483014639,0.33930344,3383.2,3383.1,4.69499386]
[1641483014841,0.33930344,3383.2,3383.1,7.32814961]
[1641483015040,0.33930344,3383.2,3383.1,4.69499386]
[1641483015844,0.33930344,3383.2,3383.1,1.95796982]
[1641483016044,0.33930344,3383.2,3382.9,1.351]
[1641483016245,0.00885198,3384.2,3383.1,0.7509717]
[1641483016443,0.00885198,3384.2,3383.1,0.73884]
[1641483016686,2.28464051,3384.1,3383.0,0.00113685]
[1641483016887,0.00511581,3384.1,3383.0,0.00113685]
[1641483017085,0.00454739,3384.0,3383.0,2.27163502]
[1641483017286,0.00454739,3384.0,3383.4,0.73878]
[1641483017487,0.00885198,3384.2,3383.4,0.73878]
[1641483017488,0.00397896,3383.9,3383.4,0.73878]
[1641483017889,0.00885198,3384.2,3383.8,1.50340125]
[1641483018289,0.00511581,3384.1,3383.8,1.50340125]
[1641483018689,1.48254919,3384.0,3383.8,1.50340125]
[1641483018891,10.06459029,3383.9,3383.4,1.50340125]
[1641483019091,10.06856925,3383.9,3383.4,1.50340125]
[1641483019291,0.74242074,3383.8,3383.4,1.50340125]
[1641483019692,0.00284212,3383.7,3383.4,1.50340125]
[1641483019890,0.00284212,3383.7,3383.0,0.00113685]
[1641483020096,0.00227369,3383.6,3383.0,0.00113685]
[1641483020341,0.00227369,3383.6,3382.8,1.47763]
[1641483020540,0.00170527,3383.5,3382.9,2.59007935]
[1641483020749,0.00170527,3383.5,3382.9,0.00170527]
[1641483020947,0.00113685,3383.4,3382.9,0.00170527]
[1641483022142,0.00113685,3383.4,3383.1,0.73885]
[1641483022541,0.00113685,3383.4,3382.9,1.00170527]
[1641483023543,0.00113685,3383.4,3382.9,0.00170527]
[1641483023849,6.9,3383.3,3382.6,2.98116125]
[1641483024097,2.22847144,3383.2,3382.6,1.50340125]
[1641483024294,2.23017671,3383.2,3382.7,0.00113685]
[1641483024493,0.00113685,3383.1,3382.7,0.00113685]
[1641483025394,2.03300675,3382.5,3382.3,0.00341054]
[1641483025799,2.33300675,3382.5,3382.3,0.00341054]
[1641483026197,19.63300675,3382.5,3382.3,0.00341054]
[1641483026497,2.33300675,3382.5,3382.0,0.00511581]
[1641483026698,1.47862,3382.5,3382.0,0.00511581]
[1641483026898,0.74043685,3383.1,3382.0,0.00511581]
[1641483026899,0.00113685,3383.1,3382.0,0.00511581]
[1641483027295,0.00113685,3383.1,3381.8,0.00625266]
[1641483027496,0.00113685,3383.1,3381.7,0.00682108]
[1641483027695,0.7391159,3382.9,3381.9,0.7391]
[1641483028138,1.7782759,3382.9,3382.0,0.00511581]
[1641483028338,1.68295494,3382.1,3382.0,0.00511581]
[1641483028541,1.68295494,3382.1,3381.8,0.00625266]
[1641483028746,1.98295494,3382.1,3381.8,0.00625266]
[1641483029044,1.72225494,3382.1,3381.8,0.00625266]
[1641483030237,0.73937,3381.6,3381.2,0.0096632]
[1641483030938,0.3,3381.5,3381.2,0.0096632]
[1641483031144,1.75312032,3381.4,3381.2,0.0096632]
[1641483031341,1.75312032,3381.4,3381.1,0.01023162]
[1641483032586,0.739345,3381.8,3381.2,10.7]
[1641483032890,0.7392234,3382.4,3381.4,1.2290274]
[1641483033088,0.73917,3382.5,3381.8,0.73914]
[1641483033488,0.73917,3382.5,3381.9,0.00568423]
[1641483033691,1.70065962,3382.0,3381.9,0.00568423]
[1641483033889,0.73917,3382.5,3381.9,0.00568423]